bitfinex/quotes_SOLUSD_20260217
["timestamp","ask_amount","ask_price","bid_price","bid_amount"]
[1771292107515,2.57076792,87.017,86.987,2.419512]
[1771292108217,2.57076792,87.017,86.991,2.419512]
[1771292108431,2.57076792,87.027,86.991,2.419512]
[1771292109094,28.72374649,87.036,87.001,2.419512]
[1771292109095,11.49000571,87.033,87.001,2.419512]
[1771292109598,11.49000571,87.033,87.003,2.419512]
[1771292109811,2.57076792,87.036,87.01,8.08162105]
[1771292110110,2.57076792,87.049,87.011,2.419512]
[1771292110310,14.05874499,87.048,87.011,2.419512]
[1771292111033,2.57076792,87.047,87.013,2.419512]
[1771292111441,2.57076792,87.059,87.021,2.419512]
[1771292111724,2.57076792,87.059,87.023,2.419512]
[1771292112513,2.57076792,87.058,87.023,2.419512]
[1771292113335,2.57076792,87.056,87.025,2.419512]
[1771292113916,11.48514396,87.069,87.03,3.23117147]
[1771292114125,2.57076792,87.063,87.032,2.42362942]
[1771292114821,11.4860674,87.062,87.032,2.42362942]
[1771292115015,13.89855228,87.062,87.032,2.42362942]
[1771292115226,2.41248488,87.061,87.032,2.42362942]
[1771292117137,2.41248488,87.059,87.032,2.42362942]
[1771292117427,2.41248488,87.059,87.033,13.91352405]
[1771292117640,2.41248488,87.069,87.041,2.42362942]
[1771292118029,2.41248488,87.067,87.041,2.42362942]
[1771292118332,11.48478346,87.072,87.041,2.42362942]
[1771292118535,11.48478346,87.072,87.043,2.42362942]
[1771292118710,2.41248488,87.071,87.043,2.42362942]
[1771292119036,2.41248488,87.069,87.042,16.3]
[1771292119815,2.41248488,87.069,87.043,2.42362942]
[1771292120322,2.41248488,87.069,87.045,2.42362942]
[1771292122739,2.41248488,87.069,87.044,16.32]
[1771292123044,2.41248488,87.069,87.038,2.42362942]
[1771292123045,2.41248488,87.049,87.01,3.23117147]
[1771292123337,2.41248488,87.049,87.011,16.32]
[1771292123725,2.41248488,87.039,87.011,16.32]
[1771292124835,2.41248488,87.037,87.006,16.32]
[1771292125036,2.41248488,87.029,86.985,2.42362942]
[1771292125246,2.41248488,87.019,86.99,2.42362942]
[1771292125429,2.41248488,87.029,86.991,2.42362942]
[1771292125838,2.41248488,87.029,86.993,2.42362942]
[1771292126537,2.41248488,87.027,86.995,2.42362942]
[1771292128619,2.41248488,87.027,86.993,11.49506407]
[1771292128620,11.49081883,87.026,86.997,2.42362942]
[1771292128825,2.41248488,87.025,86.997,2.42362942]
[1771292129026,2.41248488,87.025,86.996,11.49478136]
[1771292129027,2.41248488,87.032,87.001,2.42362942]
[1771292130445,2.41248488,87.032,87.003,2.42362942]
[1771292132625,11.48867257,87.043,87.01,3.23117147]
[1771292132829,11.48867257,87.043,87.011,2.42362942]
[1771292133027,2.41248488,87.042,87.011,2.42362942]
[1771292134347,11.48802485,87.048,87.011,2.42362942]
[1771292134643,2.41248488,87.048,87.021,2.42362942]
[1771292134847,2.41248488,87.048,87.023,2.42362942]
[1771292135849,2.41248488,87.057,87.023,2.42362942]
[1771292136347,2.41248488,87.049,87.014,2.42362942]
[1771292136727,2.41248488,87.049,87.021,2.42362942]
[1771292136942,2.41248488,87.049,87.02,3.23117147]
[1771292136943,2.41248488,87.049,87.023,2.42362942]
[1771292138445,2.41248488,87.047,87.023,2.42362942]
[1771292138840,2.41248488,87.047,87.02,16.36]
[1771292139141,2.41248488,87.047,87.02,27.85157507]
[1771292139847,2.41248488,87.045,87.02,16.36]
[1771292140041,2.41248488,87.039,87.004,13.91735384]
[1771292140235,2.41248488,87.039,87.004,30.27735384]
[1771292144149,2.55864184,87.037,87.005,16.38]
[1771292145558,2.55864184,87.037,87.0,14.72701525]
[1771292145753,2.55864184,87.037,87.001,16.38]
[1771292145953,2.55864184,87.035,87.003,11.49385653]
[1771292146258,2.55864184,87.035,87.003,13.98049284]
[1771292146748,2.55864184,87.035,87.004,2.48663631]
[1771292146933,2.55864184,87.033,87.005,18.86663631]
[1771292148358,2.55864184,87.033,87.006,2.48663631]
[1771292148659,2.55864184,87.033,87.006,13.98009653]
[1771292148863,2.55864184,87.033,87.006,2.48663631]
[1771292150432,2.64038617,87.031,87.006,2.48663631]
[1771292151661,2.64038617,87.029,87.006,2.48663631]
[1771292151838,2.64038617,87.029,87.007,16.4]
[1771292153863,2.64038617,87.027,86.998,11.49448598]
[1771292154163,2.64038617,87.027,86.999,16.4]
[1771292154960,2.64038617,87.027,87.0,16.4]
[1771292156351,2.64038617,87.027,87.002,2.61913315]
[1771292156638,2.64038617,87.027,87.004,2.61913315]
[1771292160141,11.49081883,87.026,87.004,2.61913315]
[1771292160337,11.49081883,87.026,87.003,16.4]
[1771292160338,2.64038617,87.025,87.003,16.4]
[1771292161662,2.64038617,87.023,87.003,16.4]
[1771292163566,2.64038617,87.021,86.989,2.61913315]
[1771292163754,2.64038617,87.021,86.99,16.42]
[1771292164167,2.64038617,87.021,86.991,2.61913315]
[1771292165153,2.64038617,87.021,86.992,16.42]
[1771292165459,2.64038617,87.019,86.992,16.42]
[1771292166161,2.64038617,87.019,86.985,2.61913315]
[1771292166368,2.64038617,87.019,86.987,2.61913315]
[1771292168770,2.64038617,87.017,86.987,2.61913315]
[1771292170561,2.64038617,87.017,86.984,16.42]
[1771292170754,2.64038617,87.015,86.984,16.42]
[1771292172169,3.23282788,87.01,86.984,16.42]
[1771292172470,3.23282788,87.01,86.981,11.4966645]
[1771292172471,2.64038617,87.009,86.981,11.4966645]
[1771292172667,2.64038617,87.009,86.97,3.23282788]
[1771292172668,2.64038617,86.997,86.962,2.61913315]
[1771292172879,2.64038617,86.997,86.961,11.49940778]
[1771292172880,2.64038617,86.997,86.97,2.61913315]
[1771292173378,2.64038617,86.997,86.971,2.61913315]
[1771292175170,2.69303756,86.995,86.973,2.70376906]
[1771292177062,2.69303756,86.995,86.975,2.70376906]
[1771292177353,2.69303756,87.025,86.991,2.70376906]
[1771292178170,2.69303756,87.025,86.993,2.70376906]
[1771292179060,2.69303756,87.023,86.993,2.70376906]
[1771292179267,2.69303756,87.019,86.993,2.70376906]
[1771292181282,2.69303756,87.017,86.993,2.70376906]
[1771292182161,2.69303756,87.017,86.992,16.44]
[1771292184476,2.69303756,87.015,86.992,16.44]
[1771292186658,2.69303756,87.013,86.992,16.44]
[1771292187686,2.69303756,87.019,86.993,2.70376906]
[1771292187873,2.69303756,87.018,86.993,2.70376906]
[1771292188067,2.69303756,87.018,86.992,16.44]
[1771292189687,2.69303756,87.016,86.992,19.14376906]
[1771292189984,2.69303756,87.016,86.993,2.70376906]
[1771292191583,28.72773498,87.024,86.993,2.70376906]
[1771292191584,11.49227144,87.015,86.993,2.70376906]
[1771292191880,2.69303756,87.014,86.993,2.70376906]
[1771292194189,11.49253559,87.013,86.993,2.70376906]
[1771292194370,2.69303756,87.012,86.993,2.70376906]
[1771292194973,3.23282788,87.07,87.004,2.70376906]
[1771292195181,3.23282788,87.07,87.0,6.46565576]
[1771292195182,3.23282788,87.08,87.031,2.70376906]
[1771292195382,3.23282788,87.1,87.03,3.23282788]
[1771292195383,3.23282788,87.07,87.033,2.70376906]
[1771292196882,40.19800387,87.069,87.033,2.70376906]
[1771292197096,2.69303756,87.068,87.033,2.70376906]
[1771292197484,2.69303756,87.068,87.035,2.70376906]
[1771292197698,2.69303756,87.068,87.037,2.70376906]
[1771292197877,2.69303756,87.068,87.041,2.70376906]
[1771292198295,2.69303756,87.068,87.042,2.70376906]
[1771292199196,2.69303756,87.078,87.042,2.70376906]
[1771292200401,2.69303756,87.076,87.042,2.70376906]
[1771292201884,40.19431077,87.077,87.03,19.71282788]
[1771292201885,2.69303756,87.069,87.03,19.71282788]
[1771292202317,57.41292316,87.089,87.03,16.48]
[1771292202318,11.48659514,87.058,87.03,16.48]
[1771292202606,2.69303756,87.049,87.01,5.93659694]
[1771292202906,2.69303756,87.049,87.01,3.23282788]
[1771292203100,2.69303756,87.049,87.011,2.70376906]
[1771292203691,2.69303756,87.049,87.021,2.70376906]
[1771292204906,2.61519994,87.047,87.021,2.70376906]
[1771292205903,2.61519994,87.047,87.009,16.48]
[1771292205904,2.61519994,87.047,87.011,2.74432804]
[1771292206211,2.61519994,87.029,86.993,14.23943609]
[1771292207509,3.23171985,87.03,86.994,2.74432804]
[1771292207510,2.61519994,87.027,86.994,2.74432804]
[1771292209298,2.61519994,87.027,87.001,2.65224067]
[1771292209495,2.61519994,87.027,87.002,2.65224067]
[1771292209709,2.57745412,87.035,87.011,2.65224067]
[1771292210013,11.48976262,87.034,87.011,2.65224067]
[1771292210796,14.06721674,87.034,87.011,2.65224067]
[1771292211200,2.57745412,87.029,86.994,14.14723733]
[1771292211509,2.57745412,87.029,86.995,16.48]
[1771292211717,40.20739706,87.049,86.989,11.49568441]
[1771292211718,2.57745412,87.019,86.989,11.49568441]
[1771292212094,2.57745412,87.019,86.99,3.23171985]
[1771292212523,2.57745412,87.019,86.99,5.88396052]
[1771292214116,2.57745412,87.017,86.983,14.14870979]
[1771292214512,2.57745412,87.017,86.984,2.65224067]
[1771292216004,11.49213937,87.016,86.984,2.65224067]
[1771292216332,2.57745412,87.015,86.984,2.65224067]
[1771292216910,2.57745412,87.015,86.986,2.65224067]
[1771292218826,2.57745412,87.013,86.986,2.65224067]
[1771292219222,2.55259872,87.013,86.986,2.65224067]
[1771292219416,2.55259872,87.013,86.988,2.65224067]
[1771292221004,11.49266767,87.012,86.988,2.65224067]
[1771292221223,2.57745412,87.011,86.988,2.65224067]
[1771292221527,2.57745412,87.011,86.989,11.49570635]
[1771292221715,2.57745412,87.017,86.991,2.65224067]
[1771292223103,11.49213937,87.016,86.991,2.65224067]
[1771292223311,14.06959349,87.016,86.991,2.65224067]
[1771292226128,2.57745412,87.015,86.991,2.65224067]
[1771292226626,11.49240352,87.014,86.991,2.65224067]
[1771292227136,14.06985764,87.014,86.991,2.65224067]
[1771292227312,2.57745412,87.013,86.991,2.65224067]
[1771292229807,2.57745412,87.011,86.991,2.65224067]
[1771292230517,2.57745412,87.011,86.985,11.49618129]
[1771292230724,2.57745412,87.011,86.984,2.65224067]
[1771292231242,2.57745412,87.009,86.965,2.65224067]
[1771292231432,2.57745412,87.007,86.967,2.65224067]
[1771292231638,2.57745412,86.999,86.967,2.65224067]
[1771292231940,2.57745412,86.999,86.961,2.65224067]
[1771292235435,2.61768302,86.997,86.961,2.65224067]
[1771292237608,2.61768302,86.995,86.962,2.75056972]
[1771292237809,2.61768302,86.995,86.971,2.75056972]
[1771292238029,2.61768302,86.995,86.962,2.75056972]
[1771292238413,2.61768302,86.979,86.949,2.75056972]
[1771292239450,2.61768302,86.979,86.951,2.75056972]
[1771292240047,2.61768302,86.977,86.951,2.75056972]
[1771292242228,14.11510759,86.976,86.951,2.75056972]
[1771292246138,2.61768302,86.975,86.955,2.75056972]
[1771292246743,2.61768302,86.975,86.94,3.23171985]
[1771292247239,2.61768302,86.975,86.936,2.75056972]
[1771292247438,2.61768302,86.975,86.941,2.75056972]
[1771292247633,2.61768302,86.975,86.951,2.75056972]
[1771292247834,2.61768302,86.975,86.95,3.23171985]
[1771292248232,2.61768302,86.973,86.95,3.23171985]
[1771292250042,11.49795336,86.972,86.95,3.23171985]
[1771292250231,2.61768302,86.971,86.95,3.23171985]
[1771292251336,2.61768302,86.971,86.95,5.98228957]
[1771292251541,2.61768302,86.971,86.951,14.25130001]
[1771292252136,2.61768302,86.971,86.951,2.75056972]
[1771292257250,11.49821777,86.97,86.951,2.75056972]
[1771292257553,2.61768302,86.969,86.944,2.75056972]
[1771292261753,2.61768302,86.967,86.944,2.75056972]
[1771292264154,2.87019144,86.965,86.944,2.75056972]
[1771292264356,2.87019144,86.965,86.95,3.23171985]
[1771292264562,2.87019144,86.965,86.941,2.64051354]
[1771292264748,2.87019144,86.965,86.94,3.23171985]
[1771292265641,2.87019144,86.965,86.936,2.64051354]
[1771292266161,2.87019144,86.965,86.94,3.2380858]
[1771292266654,2.87019144,86.963,86.94,3.2380858]
[1771292268955,2.87019144,86.961,86.94,5.87859934]
[1771292272460,3.2380858,86.98,86.94,5.87859934]
[1771292272461,103.1,86.997,86.941,2.68842548]
[1771292272642,2.73021745,86.99,86.971,2.68842548]
[1771292273364,11.4949135,86.995,86.971,2.68842548]
[1771292273365,14.22513095,86.995,86.971,2.68842548]
[1771292274046,2.73021745,86.994,86.971,2.68842548]
[1771292280451,2.73021745,86.992,86.97,3.2380858]
[1771292280764,2.73021745,86.992,86.966,2.68842548]
[1771292283471,2.73021745,86.99,86.966,2.68842548]
[1771292284754,2.73021745,86.99,86.97,3.2380858]
[1771292284955,2.73021745,86.99,86.953,16.56]
[1771292284956,2.73021745,86.99,86.961,2.68842548]
[1771292286380,2.73021745,86.988,86.961,2.68842548]
[1771292288070,2.73021745,86.988,86.971,2.68842548]
[1771292288255,11.49570635,86.989,86.971,2.68842548]
[1771292288455,11.49517777,86.993,86.971,2.68842548]
[1771292289277,14.22539522,86.993,86.971,2.68842548]
[1771292289457,2.73021745,86.992,86.971,2.68842548]
[1771292289658,2.73021745,86.998,86.971,2.68842548]
[1771292290866,2.73021745,87.004,86.981,2.68842548]
[1771292291068,11.49357121,87.006,86.99,5.92651128]
[1771292291275,11.49357121,87.006,86.991,2.68842548]
[1771292291473,2.73021745,87.021,86.992,2.68842548]
[1771292291784,2.73021745,87.027,87.01,3.2380858]
[1771292292663,2.73021745,87.027,87.011,2.68842548]
[1771292292875,2.73021745,87.034,87.011,2.68842548]
[1771292293670,11.48989463,87.033,87.011,2.68842548]
[1771292295272,2.82034332,87.036,87.011,2.68842548]
[1771292295760,14.30970991,87.037,87.011,2.68842548]
[1771292295961,2.82034332,87.036,87.011,2.68842548]
[1771292299672,11.4896306,87.035,87.011,2.68842548]
[1771292300074,14.30997392,87.035,87.011,2.68842548]
[1771292300583,129.02281311,87.315,87.021,2.73702036]
[1771292300584,14.30852198,87.046,87.021,2.73702036]
[1771292300763,11.48817866,87.046,87.021,2.73702036]
[1771292300969,11.48760739,87.051,87.031,2.73702036]
[1771292301592,14.30726105,87.056,87.031,2.73702036]
[1771292301895,3.3380858,87.07,87.041,2.73702036]
[1771292301896,11.4862978,87.061,87.041,2.73702036]
[1771292304387,11.48567342,87.065,87.041,2.73702036]
[1771292306901,11.58514049,87.07,87.051,2.73702036]
[1771292307096,2.82034332,87.069,87.051,2.73702036]
[1771292309507,11.48527587,87.068,87.05,3.2380858]
[1771292309706,2.82034332,87.067,87.05,5.97510616]
[1771292310010,2.82034332,87.067,87.051,2.73702036]
[1771292312287,2.82034332,87.065,87.03,3.2380858]
[1771292312481,2.82034332,87.059,87.02,3.2380858]
[1771292313509,2.82034332,87.059,87.012,2.73702036]
[1771292313704,2.82034332,87.059,87.021,2.73702036]
[1771292313896,40.19938896,87.066,87.041,2.73702036]
[1771292313897,2.82034332,87.064,87.041,2.73702036]
[1771292314206,14.30627879,87.063,87.041,2.73702036]
[1771292314407,11.48535656,87.068,87.05,3.2380858]
[1771292314615,2.82034332,87.067,87.05,3.2380858]
[1771292314988,2.82034332,87.067,87.042,2.73702036]
[1771292315306,2.82034332,87.067,87.04,3.2380858]
[1771292316811,2.82034332,87.065,87.04,3.2380858]
[1771292318206,2.82034332,87.065,87.023,2.73702036]
[1771292318405,2.82034332,87.059,87.023,2.73702036]
[1771292318584,2.82034332,87.059,87.02,3.2380858]
[1771292318788,3.2380858,87.06,87.02,3.2380858]
[1771292318789,2.82034332,87.057,87.02,3.2380858]
[1771292319186,2.82034332,87.057,87.021,2.73702036]
[1771292320314,2.82034332,87.057,87.03,3.2380858]
[1771292320604,2.82034332,87.057,87.031,2.73702036]
[1771292320810,2.82034332,87.055,87.031,2.73702036]
[1771292322391,2.82034332,87.055,87.023,2.73702036]
[1771292322597,2.82034332,87.053,87.023,2.73702036]
[1771292323915,2.82034332,87.051,87.023,2.73702036]
[1771292324296,2.82034332,87.051,87.02,3.2380858]
[1771292327516,2.68988326,87.049,87.02,5.92104342]
[1771292327814,2.68988326,87.049,87.021,2.68295762]
[1771292328316,2.68988326,87.049,87.02,3.23144091]
[1771292329706,2.8371785,87.047,87.02,3.23144091]
[1771292329911,2.8371785,87.047,87.016,2.68295762]
[1771292329912,18.2,87.046,87.002,2.76987008]
[1771292330118,2.8371785,87.039,87.002,2.76987008]
[1771292333327,2.8371785,87.037,87.002,2.76987008]
[1771292334611,40.21232104,87.038,87.002,2.76987008]
[1771292334612,2.8371785,87.035,87.002,2.76987008]
[1771292337325,2.8371785,87.033,87.002,2.76987008]
[1771292339518,2.8371785,87.031,87.002,2.76987008]
[1771292341333,2.8371785,87.029,86.983,2.76987008]
[1771292341633,2.8371785,87.009,86.983,2.76987008]
[1771292342129,2.8371785,87.059,87.001,2.76987008]
[1771292342333,2.8371785,87.059,87.0,6.46288182]
[1771292342334,2.8371785,87.058,87.021,2.76987008]
[1771292343330,2.8371785,87.056,87.021,2.76987008]
[1771292346535,40.20446843,87.055,87.021,2.76987008]
[1771292346736,2.8371785,87.054,87.021,2.76987008]
[1771292352130,2.8371785,87.052,87.021,2.76987008]
[1771292355841,2.68497976,87.049,87.021,2.76987008]
[1771292357348,11.48791471,87.048,87.021,2.76987008]
[1771292357555,14.17289447,87.048,87.021,2.76987008]
[1771292357732,2.68497976,87.047,87.021,2.76987008]
[1771292360246,2.68497976,87.045,87.021,2.76987008]
[1771292361751,11.48817866,87.046,87.021,2.76987008]
[1771292362338,3.23144091,87.06,87.021,2.76987008]
[1771292362339,2.68497976,87.051,87.021,2.76987008]
[1771292362651,11.48553642,87.067,87.041,2.78436126]
[1771292363651,11.48553642,87.067,87.027,16.34]
[1771292363652,11.48385157,87.079,87.051,2.78436126]
[1771292363945,2.68497976,87.087,87.061,2.78436126]
[1771292364151,2.68497976,87.099,87.061,2.78436126]
[1771292364858,2.68497976,87.098,87.061,2.78436126]
[1771292366462,2.68497976,87.096,87.061,2.78436126]
[1771292366643,2.68497976,87.089,87.061,2.78436126]
[1771292367858,2.68497976,87.087,87.061,2.78436126]
[1771292370069,11.48290195,87.086,87.061,2.78436126]
[1771292370253,2.68497976,87.085,87.061,2.78436126]
[1771292370450,2.68497976,87.079,87.046,2.78436126]
[1771292370962,2.68497976,87.079,87.047,2.78436126]
[1771292371142,2.68497976,87.079,87.051,2.78436126]
[1771292373266,2.68497976,87.077,87.051,2.78436126]
[1771292378767,2.68497976,87.059,87.02,3.23144091]
[1771292379362,2.68497976,87.059,87.03,3.23144091]
[1771292380764,14.1715749,87.058,87.031,2.78436126]
[1771292381270,2.68497976,87.057,87.031,2.78436126]
[1771292383261,14.17183879,87.056,87.031,2.78436126]
[1771292383469,11.48685903,87.056,87.031,2.78436126]
[1771292383688,2.68497976,87.055,87.031,2.78436126]
[1771292383855,11.48685903,87.056,87.02,3.23144091]
[1771292383856,11.48425234,87.076,87.05,3.23144091]
[1771292384059,11.48425234,87.076,87.06,3.23144091]
[1771292384774,2.7472862,87.075,87.05,3.23144091]
[1771292386857,11.48448446,87.074,87.05,3.23144091]
[1771292387062,2.7472862,87.073,87.05,3.23144091]
[1771292387977,2.7472862,87.073,87.05,3.22911871]
[1771292389473,11.48474825,87.072,87.044,16.3]
[1771292389675,3.22911871,87.06,87.028,11.49055476]
[1771292389859,2.7472862,87.059,87.028,11.49055476]
[1771292391966,2.7472862,87.057,87.021,11.49147906]
[1771292393585,2.7472862,87.057,87.022,16.3]
[1771292394280,2.7472862,87.055,87.021,11.49147906]
[1771292394481,3.22911871,87.05,87.017,11.49199435]
[1771292394669,2.7472862,87.049,87.017,27.79199435]
[1771292395687,2.7472862,87.047,87.02,3.22911871]
[1771292398470,2.7472862,87.06,87.03,3.22911871]
[1771292398674,2.7472862,87.093,87.05,3.22911871]
[1771292398875,2.7472862,87.099,87.07,3.22911871]
[1771292399070,2.7472862,87.099,87.06,3.22911871]
[1771292399376,2.7472862,87.099,87.07,3.22911871]
[1771292399684,2.7472862,87.109,87.08,3.22911871]
[1771292400261,2.7472862,87.109,87.081,12.68]
[1771292400460,2.7472862,87.108,87.081,12.68]
[1771292400682,2.7472862,87.108,87.082,11.48342941]
[1771292400982,2.7472862,87.108,87.074,16.3]
[1771292402187,2.7472862,87.099,87.06,3.22911871]
[1771292402384,2.7472862,87.099,87.06,19.54911871]
[1771292403482,2.7472862,87.097,87.061,11.48616843]
[1771292403982,2.7472862,87.089,87.05,3.22911871]
[1771292404668,2.7472862,87.089,87.012,0.14216157]
[1771292404669,2.7472862,87.079,87.036,11.4894671]
[1771292404870,2.7472862,87.079,87.04,3.22911871]
[1771292405475,2.7472862,87.077,87.041,11.48883859]
[1771292405972,2.7472862,87.077,87.037,11.48936622]
[1771292406283,2.7472862,87.077,87.04,3.22911871]
[1771292408277,40.19384919,87.078,87.04,3.22911871]
[1771292408278,2.7472862,87.075,87.041,11.48883859]
[1771292410482,2.7472862,87.075,87.05,3.22911871]
[1771292412894,2.7472862,87.073,87.041,11.48883859]
[1771292413682,2.7472862,87.073,87.05,3.22911871]
[1771292415284,2.7472862,87.087,87.05,43.43588781]
[1771292415482,2.7472862,87.093,87.06,3.22911871]
[1771292415698,2.7472862,87.093,87.06,19.54911871]
[1771292421496,2.7472862,87.093,87.061,11.48619933]
[1771292422907,2.7472862,87.091,87.061,11.48619933]
[1771292423611,2.7472862,87.089,87.061,11.48619933]
[1771292423786,2.7472862,87.089,87.06,16.32]
[1771292424188,2.7472862,87.089,87.057,11.48671444]
[1771292424987,2.7472862,87.089,87.06,3.22911871]
[1771292425882,2.7472862,87.087,87.053,11.48725489]
[1771292426086,2.7472862,87.087,87.06,3.22911871]
[1771292429109,2.7472862,87.085,87.051,16.36]
[1771292429607,2.7472862,87.085,87.053,11.48719532]
[1771292430811,11.48316567,87.084,87.053,11.48719532]
[1771292431000,2.7472862,87.083,87.053,11.48719532]
[1771292434315,18.32,87.112,87.06,3.22911871]
[1771292434316,2.7472862,87.095,87.06,3.22911871]
[1771292435009,2.7472862,87.095,87.07,3.22911871]
[1771292440118,2.7472862,87.093,87.06,3.22911871]
[1771292440324,2.7472862,87.093,87.061,16.36]
[1771292442728,2.7472862,87.093,87.062,11.4860674]
[1771292445916,2.7472862,87.091,87.062,11.4860674]
[1771292448534,2.7472862,87.089,87.061,16.36]
[1771292451141,2.7472862,87.087,87.061,16.36]
[1771292453440,2.7472862,87.085,87.061,16.36]
[1771292454034,2.7472862,87.085,87.055,11.48695203]
[1771292454337,2.7472862,87.085,87.051,11.48751334]
[1771292457023,2.7472862,87.083,87.051,11.48751334]
[1771292462138,2.7472862,87.081,87.051,11.48751334]
[1771292462737,2.7472862,87.079,87.032,28.7249662]
[1771292462947,2.7472862,87.079,87.033,16.42]
[1771292463518,2.7472862,87.069,87.033,16.42]
[1771292463942,40.19200293,87.082,87.05,3.22836995]
[1771292463943,2.7472862,87.081,87.05,3.22836995]
[1771292464824,2.7472862,87.081,87.033,56.63463122]
[1771292465139,2.7472862,87.081,87.05,3.22836995]
[1771292466337,11.48369315,87.08,87.05,3.22836995]
[1771292466530,2.7472862,87.079,87.05,3.22836995]
[1771292469551,11.48395691,87.078,87.05,3.22836995]
[1771292469854,2.7472862,87.077,87.05,3.22836995]
[1771292470654,2.7472862,87.077,87.041,11.48879079]
[1771292470832,2.7472862,87.077,87.05,3.22836995]
[1771292471551,28.70800628,87.084,87.041,11.48879079]
[1771292471552,2.7472862,87.075,87.041,11.48879079]
[1771292472557,2.7472862,87.075,87.037,11.48934417]
[1771292473660,2.7472862,87.073,87.04,3.22836995]
[1771292474244,2.7472862,87.059,87.02,3.22836995]
[1771292474442,2.7472862,87.059,87.02,19.66836995]
[1771292475755,2.7472862,87.057,87.024,11.49098113]
[1771292477546,11.48685903,87.056,87.024,11.49098113]
[1771292477752,2.7472862,87.055,87.03,3.22836995]
[1771292482357,14.23440913,87.054,87.03,3.22836995]
[1771292482765,2.7472862,87.053,87.028,16.46]
[1771292483070,2.7472862,87.039,87.0,3.22836995]
[1771292483462,2.7472862,87.039,86.99,3.22836995]
[1771292483649,2.7472862,87.029,86.991,16.46]
[1771292483849,2.7472862,87.019,86.974,40.24191137]
[1771292484050,2.7472862,87.019,86.98,3.22836995]
[1771292484560,2.7472862,87.017,86.981,11.49676366]
[1771292486367,2.7472862,87.015,86.981,11.49676366]
[1771292488559,2.7472862,87.013,86.981,11.49676366]
[1771292489971,2.7472862,87.013,86.98,3.22836995]
[1771292490875,2.7472862,87.011,86.976,27.95741859]
[1771292491974,2.7472862,87.011,86.976,11.49741859]
[1771292492675,2.7472862,87.011,86.98,3.22836995]
[1771292494474,14.24021804,87.01,86.98,3.22836995]
[1771292494876,2.7472862,87.009,86.98,3.22836995]
[1771292496761,14.23902938,87.019,86.99,3.22836995]
[1771292497466,11.49069714,87.027,87.0,3.22836995]
[1771292497659,2.7472862,87.031,87.0,3.22836995]
[1771292497976,11.4902907,87.03,87.0,3.22836995]
[1771292498464,11.4902907,87.03,86.995,16.48]
[1771292498779,11.4902907,87.03,87.0,3.22836995]
[1771292499277,2.7472862,87.031,87.001,11.49412075]
[1771292499463,11.48303381,87.085,87.021,2.4850214]
[1771292499663,3.22836995,87.08,87.041,2.4850214]
[1771292500054,11.48303381,87.085,87.041,2.4850214]
[1771292500253,3.22836995,87.07,87.041,2.4850214]
[1771292500578,3.22836995,87.07,87.035,2.48484071]
[1771292500755,3.22836995,87.07,87.03,2.48484071]
[1771292501478,2.58916406,87.068,87.03,2.48484071]
[1771292502168,2.58916406,87.068,87.03,5.71321066]
[1771292502573,2.58916406,87.066,87.031,2.48439037]
[1771292503374,2.58916406,87.066,87.025,18.96417862]
[1771292503575,2.58916406,87.059,87.019,2.48417862]
[1771292504165,2.58916406,87.059,87.02,3.22836995]
[1771292504358,2.58916406,87.059,87.021,2.45255654]
[1771292505170,2.43608436,87.057,87.021,2.45255654]
[1771292505372,2.43608436,87.057,87.015,2.45255654]
[1771292508167,2.43608436,87.055,87.017,2.45255654]
[1771292509581,2.49358304,87.053,87.02,5.68180557]
[1771292509765,2.49358304,87.053,87.021,2.45343562]
[1771292511775,2.49358304,87.051,87.012,2.45343562]
[1771292511984,2.49358304,87.049,87.012,2.45343562]
[1771292513789,2.49358304,87.047,87.005,2.45343562]
[1771292514176,2.49358304,87.047,87.006,2.45343562]
[1771292516499,2.49358304,87.045,87.006,2.45343562]
[1771292518979,2.49358304,87.043,87.006,2.45343562]
[1771292519784,2.49358304,87.043,87.007,2.45343562]
[1771292520189,2.49358304,87.043,86.98,2.45343562]
[1771292520406,2.49358304,87.029,86.991,2.45343562]
[1771292520580,2.49358304,87.029,86.982,2.45343562]
[1771292521505,40.21694166,87.028,86.982,2.45343562]
[1771292521703,2.49358304,87.027,86.982,2.45343562]
[1771292524210,2.49358304,87.025,86.982,2.45343562]
[1771292526106,2.49358304,87.023,86.982,2.45343562]
[1771292526784,2.49358304,87.019,86.978,16.6]
[1771292526991,2.49358304,87.019,86.978,19.05343562]
[1771292527306,2.49358304,87.019,86.979,2.45343562]
[1771292528000,2.49358304,87.009,86.978,16.6]
[1771292529087,2.49358304,87.007,86.974,2.45343562]
[1771292529688,2.49358304,87.007,86.97,3.43155344]
[1771292529897,2.49358304,87.007,86.97,0.2]
[1771292530213,2.49358304,87.007,86.97,2.65343562]
[1771292532112,2.49358304,87.007,86.865,19.26812797]
[1771292532113,2.49358304,86.989,86.946,2.45343562]
[1771292532290,2.49358304,86.979,86.946,2.45343562]
[1771292534094,2.4282344,86.977,86.946,2.45343562]
[1771292535402,18.3,86.985,86.946,2.45343562]
[1771292535403,11.49649931,86.983,86.946,2.45343562]
[1771292535604,2.4282344,87.009,86.961,2.46184864]